[Event "Titled Tuesday Blitz June 28 Early 2022"]
[White "Nguyen, Quoc Hy"]
[Black "Omariev, Maksim"]
[WhiteFideId "12410853"]
[BlackFideId "4193423"]
[WhiteElo "1938"]
[BlackElo "2484"]
[Result "1-0"]
[Round "07"]
[TimeControl "180+1"]
[Date "2022.06.28"]
[WhiteClock "0:00:06"]
[BlackClock "0:00:01"]

1. d4 {[%clk 0:03:00]}  d5 {[%clk 0:02:59]} 2. c4 {[%clk 0:02:59]}  e6 {[%clk 0:02:59]} 3. Nc3 {[%clk 0:02:59]}  Nf6 {[%clk 0:02:59]} 4. cxd5 {[%clk 0:02:58]}  exd5 {[%clk 0:03:00]} 5. Bg5 {[%clk 0:02:59]}  Be7 {[%clk 0:03:00]} 6. e3 {[%clk 0:02:59]}  c6 {[%clk 0:03:00]} 7. Bd3 {[%clk 0:02:59]}  Bg4 {[%clk 0:03:00]} 8. Qc2 {[%clk 0:02:58]}  Bh5 {[%clk 0:03:00]} 9. Nge2 {[%clk 0:02:57]}  Bg6 {[%clk 0:03:01]} 10. Ng3 {[%clk 0:02:54]}  Bxd3 {[%clk 0:02:57]} 11. Qxd3 {[%clk 0:02:53]}  h6 {[%clk 0:02:56]} 12. Bf4 {[%clk 0:02:51]}  O-O {[%clk 0:02:22]} 13. Nf5 {[%clk 0:02:47]}  Nh5 {[%clk 0:02:10]} 14. Be5 {[%clk 0:02:37]}  Nd7 {[%clk 0:02:08]} 15. g4 {[%clk 0:02:31]}  Nhf6 {[%clk 0:02:03]} 16. Rg1 {[%clk 0:02:29]}  Nxe5 {[%clk 0:01:59]} 17. dxe5 {[%clk 0:02:27]}  Nd7 {[%clk 0:02:00]} 18. Qd4 {[%clk 0:02:23]}  Bc5 {[%clk 0:01:55]} 19. Qf4 {[%clk 0:02:22]}  Qe8 {[%clk 0:01:19]} 20. g5 {[%clk 0:02:12]}  h5 {[%clk 0:00:55]} 21. Na4 {[%clk 0:00:53]}  Bb6 {[%clk 0:00:40]} 22. Nxb6 {[%clk 0:00:44]}  axb6 {[%clk 0:00:40]} 23. a3 {[%clk 0:00:14]}  Qxe5 {[%clk 0:00:38]} 24. Qxe5 {[%clk 0:00:11]}  Nxe5 {[%clk 0:00:39]} 25. O-O-O {[%clk 0:00:11]}  g6 {[%clk 0:00:39]} 26. Nd4 {[%clk 0:00:11]}  Rfe8 {[%clk 0:00:39]} 27. h3 {[%clk 0:00:10]}  Nc4 {[%clk 0:00:38]} 28. Nf3 {[%clk 0:00:07]}  b5 {[%clk 0:00:38]} 29. Nd4 {[%clk 0:00:07]}  Re7 {[%clk 0:00:39]} 30. Nb3 {[%clk 0:00:07]}  Ra4 {[%clk 0:00:38]} 31. Nc5 {[%clk 0:00:07]}  Ra7 {[%clk 0:00:38]} 32. e4 {[%clk 0:00:06]}  dxe4 {[%clk 0:00:37]} 33. Rd8+ {[%clk 0:00:07]}  Kg7 {[%clk 0:00:37]} 34. Nd7 {[%clk 0:00:07]}  Re6 {[%clk 0:00:04]} 35. Nf6 {[%clk 0:00:06]}  Rxf6 {[%clk 0:00:05]} 36. gxf6+ {[%clk 0:00:06]}  Kxf6 {[%clk 0:00:05]} 37. Re1 {[%clk 0:00:06]}  Kf5 {[%clk 0:00:05]} 38. Rd4 {[%clk 0:00:05]}  e3 {[%clk 0:00:03]} 39. fxe3 {[%clk 0:00:05]}  b6 {[%clk 0:00:03]} 40. Rf1+ {[%clk 0:00:04]}  Ke6 {[%clk 0:00:04]} 41. Re4+ {[%clk 0:00:05]}  Ne5 {[%clk 0:00:04]} 42. Ref4 {[%clk 0:00:04]}  f5 {[%clk 0:00:04]} 43. Rd4 {[%clk 0:00:04]}  c5 {[%clk 0:00:04]} 44. Rd8 {[%clk 0:00:04]}  Re7 {[%clk 0:00:04]} 45. Rfd1 {[%clk 0:00:03]}  Nc4 {[%clk 0:00:04]} 46. R1d3 {[%clk 0:00:03]}  Kf6 {[%clk 0:00:05]} 47. b3 {[%clk 0:00:04]}  Nxe3 {[%clk 0:00:04]} 48. R8d6+ {[%clk 0:00:04]}  Kg5 {[%clk 0:00:04]} 49. Rxb6 {[%clk 0:00:04]}  c4 {[%clk 0:00:05]} 50. Rc3 {[%clk 0:00:03]}  cxb3 {[%clk 0:00:05]} 51. Rxb3 {[%clk 0:00:03]}  Nc4 {[%clk 0:00:05]} 52. R6xb5 {[%clk 0:00:03]}  Ne5 {[%clk 0:00:05]} 53. a4 {[%clk 0:00:03]}  h4 {[%clk 0:00:06]} 54. a5 {[%clk 0:00:03]}  Rc7+ {[%clk 0:00:07]} 55. Kb1 {[%clk 0:00:03]}  Nc4 {[%clk 0:00:07]} 56. a6 {[%clk 0:00:03]}  Ra7 {[%clk 0:00:07]} 57. Rc5 {[%clk 0:00:03]}  Nd2+ {[%clk 0:00:07]} 58. Kb2 {[%clk 0:00:02]}  Nxb3 {[%clk 0:00:08]} 59. Rc6 {[%clk 0:00:02]}  Rxa6 {[%clk 0:00:09]} 60. Rxa6 {[%clk 0:00:02]}  Nd2 {[%clk 0:00:09]} 61. Kc3 {[%clk 0:00:02]}  Ne4+ {[%clk 0:00:09]} 62. Kd4 {[%clk 0:00:02]}  Kf4 {[%clk 0:00:09]} 63. Rxg6 {[%clk 0:00:02]}  Nf2 {[%clk 0:00:09]} 64. Rh6 {[%clk 0:00:03]}  Kg3 {[%clk 0:00:09]} 65. Ke3 {[%clk 0:00:03]}  f4+ {[%clk 0:00:09]} 66. Ke2 {[%clk 0:00:03]}  f3+ {[%clk 0:00:09]} 67. Kf1 {[%clk 0:00:03]}  Nxh3 {[%clk 0:00:09]} 68. Rg6+ {[%clk 0:00:04]}  Kf4 {[%clk 0:00:09]} 69. Rf6+ {[%clk 0:00:04]}  Kg4 {[%clk 0:00:09]} 70. Rg6+ {[%clk 0:00:04]}  Ng5 {[%clk 0:00:10]} 71. Rh6 {[%clk 0:00:04]}  Kg3 {[%clk 0:00:09]} 72. Rg6 {[%clk 0:00:04]}  Kg4 {[%clk 0:00:09]} 73. Rh6 {[%clk 0:00:04]}  h3 {[%clk 0:00:09]} 74. Rh8 {[%clk 0:00:05]}  Ne4 {[%clk 0:00:08]} 75. Rg8+ {[%clk 0:00:05]}  Kf4 {[%clk 0:00:08]} 76. Rf8+ {[%clk 0:00:05]}  Ke3 {[%clk 0:00:09]} 77. Kg1 {[%clk 0:00:06]}  f2+ {[%clk 0:00:08]} 78. Kh2 {[%clk 0:00:06]}  Ng5 {[%clk 0:00:07]} 79. Re8+ {[%clk 0:00:05]}  Kf3 {[%clk 0:00:07]} 80. Rf8+ {[%clk 0:00:05]}  Ke2 {[%clk 0:00:07]} 81. Re8+ {[%clk 0:00:05]}  Kf3 {[%clk 0:00:08]} 82. Rf8+ {[%clk 0:00:05]}  Kg4 {[%clk 0:00:08]} 83. Rxf2 {[%clk 0:00:05]}  Nf3+ {[%clk 0:00:07]} 84. Kh1 {[%clk 0:00:05]}  Ng5 {[%clk 0:00:06]} 85. Ra2 {[%clk 0:00:04]}  Nf3 {[%clk 0:00:06]} 86. Ra4+ {[%clk 0:00:05]}  Kg3 {[%clk 0:00:06]} 87. Ra3 {[%clk 0:00:06]}  Kf2 {[%clk 0:00:06]} 88. Rc3 {[%clk 0:00:06]}  Kg3 {[%clk 0:00:07]} 89. Rc2 {[%clk 0:00:06]}  Kf4 {[%clk 0:00:07]} 90. Rc8 {[%clk 0:00:07]}  Kg3 {[%clk 0:00:07]} 91. Rg8+ {[%clk 0:00:08]}  Kf2 {[%clk 0:00:08]} 92. Rh8 {[%clk 0:00:09]}  Kg3 {[%clk 0:00:08]} 93. Rh7 {[%clk 0:00:09]}  Kg4 {[%clk 0:00:08]} 94. Rg7+ {[%clk 0:00:09]}  Kf4 {[%clk 0:00:08]} 95. Rg8 {[%clk 0:00:09]}  Kf5 {[%clk 0:00:07]} 96. Rg3 {[%clk 0:00:09]}  Ng5 {[%clk 0:00:06]} 97. Kh2 {[%clk 0:00:09]}  Kf4 {[%clk 0:00:07]} 98. Ra3 {[%clk 0:00:09]}  Kg4 {[%clk 0:00:07]} 99. Ra4+ {[%clk 0:00:09]}  Kf3 {[%clk 0:00:07]} 100. Rb4 {[%clk 0:00:09]}  Ke3 {[%clk 0:00:07]} 101. Rg4 {[%clk 0:00:09]}  Ne4 {[%clk 0:00:05]} 102. Rg8 {[%clk 0:00:08]}  Nf2 {[%clk 0:00:04]} 103. Kg3 {[%clk 0:00:07]}  Ne4+ {[%clk 0:00:01]} 104. Kxh3 {[%clk 0:00:07]}  Kf4 {[%clk 0:00:01]} 105. Rf8+ {[%clk 0:00:07]}  Ke5 {[%clk 0:00:01]} 106. Rd8 {[%clk 0:00:06]} 1-0


[Site "https://www.chess.com"]

[Event "Titled Tuesday Blitz June 28 Early 2022"]
[White "Pirvulescu, Ekaterina"]
[Black "Silva, Pedro Gil Ferreira Da"]
[WhiteFideId "13506374"]
[BlackFideId "1946102"]
[WhiteElo "1740"]
[BlackElo "1863"]
[Result "0-1"]
[Round "07"]
[TimeControl "180+1"]
[Date "2022.06.28"]
[WhiteClock "0:00:01"]
[BlackClock "0:01:27"]

1. e4 {[%clk 0:02:47]}  c5 {[%clk 0:02:56]} 2. c3 {[%clk 0:02:44]}  d5 {[%clk 0:02:53]} 3. exd5 {[%clk 0:02:40]}  Qxd5 {[%clk 0:02:54]} 4. d4 {[%clk 0:02:40]}  cxd4 {[%clk 0:02:51]} 5. Nf3 {[%clk 0:02:40]}  Nc6 {[%clk 0:02:43]} 6. cxd4 {[%clk 0:02:27]}  e6 {[%clk 0:02:39]} 7. Nc3 {[%clk 0:02:26]}  Bb4 {[%clk 0:02:37]} 8. Bd2 {[%clk 0:02:19]}  Bxc3 {[%clk 0:02:36]} 9. Bxc3 {[%clk 0:02:18]}  Nf6 {[%clk 0:02:37]} 10. Be2 {[%clk 0:02:16]}  O-O {[%clk 0:02:37]} 11. O-O {[%clk 0:02:04]}  Rd8 {[%clk 0:02:36]} 12. b3 {[%clk 0:01:56]}  b6 {[%clk 0:02:32]} 13. Bc4 {[%clk 0:01:55]}  Qh5 {[%clk 0:02:28]} 14. Ne5 {[%clk 0:01:39]}  Qxd1 {[%clk 0:02:27]} 15. Raxd1 {[%clk 0:01:34]}  Bb7 {[%clk 0:02:27]} 16. a3 {[%clk 0:01:15]}  Rac8 {[%clk 0:02:26]} 17. Bb2 {[%clk 0:01:15]}  Nd5 {[%clk 0:02:17]} 18. Rfe1 {[%clk 0:01:07]}  Na5 {[%clk 0:02:15]} 19. Rc1 {[%clk 0:00:55]}  a6 {[%clk 0:02:12]} 20. a4 {[%clk 0:00:42]}  Nf4 {[%clk 0:01:57]} 21. g3 {[%clk 0:00:22]}  Nd5 {[%clk 0:01:55]} 22. f4 {[%clk 0:00:19]}  Nxc4 {[%clk 0:01:47]} 23. bxc4 {[%clk 0:00:19]}  Nb4 {[%clk 0:01:38]} 24. Red1 {[%clk 0:00:16]}  f6 {[%clk 0:01:37]} 25. Nd3 {[%clk 0:00:14]}  Nc6 {[%clk 0:01:34]} 26. Nf2 {[%clk 0:00:12]}  Na5 {[%clk 0:01:34]} 27. c5 {[%clk 0:00:10]}  bxc5 {[%clk 0:01:31]} 28. dxc5 {[%clk 0:00:10]}  Rxd1+ {[%clk 0:01:31]} 29. Nxd1 {[%clk 0:00:09]}  Nb3 {[%clk 0:01:30]} 30. Ba3 {[%clk 0:00:07]}  Nxc1 {[%clk 0:01:29]} 31. Bxc1 {[%clk 0:00:06]}  Rxc5 {[%clk 0:01:29]} 32. Be3 {[%clk 0:00:06]}  Rc2 {[%clk 0:01:29]} 33. Nf2 {[%clk 0:00:04]}  Ra2 {[%clk 0:01:27]} 34. Kf1 {[%clk 0:00:02]}  Rxa4 {[%clk 0:01:27]} 35. Ke2 {[%clk 0:00:01]}  Ra2+ {[%clk 0:01:27]} 36. Bd2 {[%clk 0:00:02]}  a5 {[%clk 0:01:28]} 37. Ke3 {[%clk 0:00:02]}  a4 {[%clk 0:01:28]} 38. Nd3 {[%clk 0:00:01]}  a3 {[%clk 0:01:27]} 39. Nb4 {[%clk 0:00:02]}  Rb2 {[%clk 0:01:27]} 40. Kd3 {[%clk 0:00:01]}  a2 {[%clk 0:01:26]} 41. Bc3 {[%clk 0:00:01]}  a1=Q {[%clk 0:01:27]} 0-1


[Site "https://www.chess.com"]

[Event "Titled Tuesday Blitz June 28 Early 2022"]
[White "OKEKE, Isaac Chukwudalu"]
[Black "Plazuelo Pascual, Juan"]
[WhiteFideId "8508526"]
[BlackFideId "32059566"]
[WhiteElo "2102"]
[BlackElo "2359"]
[Result "0-1"]
[Round "07"]
[TimeControl "180+1"]
[Date "2022.06.28"]
[WhiteClock "0:00:58"]
[BlackClock "0:01:52"]

1. e4 {[%clk 0:02:58]}  c5 {[%clk 0:03:00]} 2. Nf3 {[%clk 0:02:59]}  Nc6 {[%clk 0:03:00]} 3. d4 {[%clk 0:02:55]}  cxd4 {[%clk 0:03:00]} 4. Nxd4 {[%clk 0:02:56]}  e5 {[%clk 0:03:01]} 5. Nb5 {[%clk 0:02:55]}  d6 {[%clk 0:03:01]} 6. N1c3 {[%clk 0:02:55]}  a6 {[%clk 0:03:02]} 7. Na3 {[%clk 0:02:55]}  Be6 {[%clk 0:03:02]} 8. Nd5 {[%clk 0:02:47]}  Nf6 {[%clk 0:03:01]} 9. Bg5 {[%clk 0:02:47]}  Qa5+ {[%clk 0:03:01]} 10. Bd2 {[%clk 0:02:46]}  Qd8 {[%clk 0:03:01]} 11. Bg5 {[%clk 0:02:44]}  Bxd5 {[%clk 0:02:55]} 12. exd5 {[%clk 0:02:20]}  Qa5+ {[%clk 0:02:54]} 13. c3 {[%clk 0:02:13]}  Qxd5 {[%clk 0:02:54]} 14. Nc4 {[%clk 0:02:10]}  Qe4+ {[%clk 0:02:23]} 15. Be2 {[%clk 0:01:51]}  Qxg2 {[%clk 0:02:21]} 16. Bf3 {[%clk 0:01:44]}  Qxg5 {[%clk 0:02:20]} 17. Nxd6+ {[%clk 0:01:35]}  Bxd6 {[%clk 0:02:08]} 18. Bxc6+ {[%clk 0:01:29]}  Ke7 {[%clk 0:02:02]} 19. Bf3 {[%clk 0:01:16]}  Qf4 {[%clk 0:01:57]} 20. Qe2 {[%clk 0:01:10]}  e4 {[%clk 0:01:53]} 21. Bg2 {[%clk 0:01:09]}  Rhe8 {[%clk 0:01:53]} 22. Rd1 {[%clk 0:00:58]}  Rad8 {[%clk 0:01:52]} 0-1


[Site "https://www.chess.com"]

[Event "Titled Tuesday Blitz June 28 Early 2022"]
[White "Oparin, Grigoriy"]
[Black "Jones, Gawain C B"]
[WhiteFideId "24125890"]
[BlackFideId "409561"]
[WhiteElo "2639"]
[BlackElo "2657"]
[Result "1/2-1/2"]
[Round "07"]
[TimeControl "180+1"]
[Date "2022.06.28"]
[WhiteClock "0:00:14"]
[BlackClock "0:00:09"]

1. g3 {[%clk 0:03:00]}  d5 {[%clk 0:02:59]} 2. Nf3 {[%clk 0:03:00]}  g6 {[%clk 0:02:59]} 3. c4 {[%clk 0:03:01]}  dxc4 {[%clk 0:02:59]} 4. Na3 {[%clk 0:03:01]}  Nf6 {[%clk 0:02:58]} 5. Nxc4 {[%clk 0:03:00]}  Bg7 {[%clk 0:02:58]} 6. Bg2 {[%clk 0:03:01]}  O-O {[%clk 0:02:56]} 7. d3 {[%clk 0:03:01]}  c5 {[%clk 0:02:55]} 8. Be3 {[%clk 0:03:00]}  Na6 {[%clk 0:02:50]} 9. O-O {[%clk 0:02:59]}  Be6 {[%clk 0:02:47]} 10. Rc1 {[%clk 0:03:00]}  Bd5 {[%clk 0:02:45]} 11. a3 {[%clk 0:02:59]}  Rc8 {[%clk 0:02:43]} 12. Re1 {[%clk 0:02:56]}  Ng4 {[%clk 0:02:39]} 13. Bf4 {[%clk 0:02:50]}  b5 {[%clk 0:02:36]} 14. Nce5 {[%clk 0:02:50]}  Nxe5 {[%clk 0:02:17]} 15. Bxe5 {[%clk 0:02:49]}  Bxe5 {[%clk 0:02:03]} 16. Nxe5 {[%clk 0:02:49]}  Bxg2 {[%clk 0:02:03]} 17. Kxg2 {[%clk 0:02:50]}  Qd4 {[%clk 0:02:03]} 18. Nf3 {[%clk 0:02:51]}  Qxb2 {[%clk 0:02:03]} 19. Rb1 {[%clk 0:02:51]}  Qc3 {[%clk 0:01:45]} 20. Rxb5 {[%clk 0:02:50]}  c4 {[%clk 0:01:42]} 21. Qa4 {[%clk 0:02:45]}  Nc7 {[%clk 0:01:41]} 22. Rc5 {[%clk 0:02:44]}  Ne6 {[%clk 0:01:39]} 23. Rxc4 {[%clk 0:02:41]}  Rxc4 {[%clk 0:01:39]} 24. dxc4 {[%clk 0:02:41]}  a5 {[%clk 0:01:26]} 25. Rb1 {[%clk 0:02:26]}  Nc5 {[%clk 0:01:24]} 26. Qc6 {[%clk 0:02:02]}  Qxa3 {[%clk 0:01:24]} 27. Rb5 {[%clk 0:02:02]}  Ne6 {[%clk 0:01:05]} 28. c5 {[%clk 0:02:02]}  Qa2 {[%clk 0:00:56]} 29. Qe4 {[%clk 0:01:51]}  Rc8 {[%clk 0:00:55]} 30. c6 {[%clk 0:01:51]}  a4 {[%clk 0:00:46]} 31. Ra5 {[%clk 0:01:47]}  a3 {[%clk 0:00:45]} 32. Ne5 {[%clk 0:01:32]}  Qb3 {[%clk 0:00:30]} 33. Nd3 {[%clk 0:00:49]}  Qc3 {[%clk 0:00:17]} 34. Ra6 {[%clk 0:00:33]}  a2 {[%clk 0:00:11]} 35. Rxa2 {[%clk 0:00:20]}  Qxc6 {[%clk 0:00:11]} 36. Qxc6 {[%clk 0:00:19]}  Rxc6 {[%clk 0:00:12]} 37. Ra7 {[%clk 0:00:19]}  Rc7 {[%clk 0:00:13]} 38. Ra8+ {[%clk 0:00:20]}  Kg7 {[%clk 0:00:13]} 39. h4 {[%clk 0:00:20]}  h5 {[%clk 0:00:13]} 40. Ne5 {[%clk 0:00:20]}  Rc5 {[%clk 0:00:11]} 41. Nf3 {[%clk 0:00:20]}  Rd5 {[%clk 0:00:11]} 42. Ra7 {[%clk 0:00:19]}  Kf6 {[%clk 0:00:11]} 43. Ng1 {[%clk 0:00:16]}  Rc5 {[%clk 0:00:11]} 44. e3 {[%clk 0:00:15]}  Rc7 {[%clk 0:00:11]} 45. Ra6 {[%clk 0:00:15]}  Kg7 {[%clk 0:00:11]} 46. Nh3 {[%clk 0:00:16]}  Nc5 {[%clk 0:00:10]} 47. Ra2 {[%clk 0:00:15]}  Ne6 {[%clk 0:00:10]} 48. Rb2 {[%clk 0:00:15]}  Rd7 {[%clk 0:00:10]} 49. Rb6 {[%clk 0:00:14]}  Rc7 {[%clk 0:00:10]} 50. Ra6 {[%clk 0:00:13]}  Rd7 {[%clk 0:00:11]} 51. Ng1 {[%clk 0:00:13]}  Rc7 {[%clk 0:00:11]} 52. Nf3 {[%clk 0:00:13]}  Rc5 {[%clk 0:00:10]} 53. Ra7 {[%clk 0:00:13]}  Rc7 {[%clk 0:00:10]} 54. Ra5 {[%clk 0:00:13]}  Rc5 {[%clk 0:00:10]} 55. Ra7 {[%clk 0:00:13]}  Rc7 {[%clk 0:00:10]} 56. Ra5 {[%clk 0:00:13]}  Rc5 {[%clk 0:00:09]} 57. Ra7 {[%clk 0:00:14]} 1/2-1/2


[Site "https://www.chess.com"]

[Event "Titled Tuesday Blitz June 28 Early 2022"]
[White "Ouellet, Maili-Jade"]
[Black "Piliczewski, Bogusz"]
[WhiteFideId "2620472"]
[BlackFideId "1104144"]
[WhiteElo "1899"]
[BlackElo "1896"]
[Result "1-0"]
[Round "07"]
[TimeControl "180+1"]
[Date "2022.06.28"]
[WhiteClock "0:00:03"]
[BlackClock "0:00:01"]

1. d4 {[%clk 0:03:00]}  d5 {[%clk 0:02:59]} 2. c4 {[%clk 0:03:01]}  c6 {[%clk 0:02:59]} 3. Nf3 {[%clk 0:03:00]}  Nf6 {[%clk 0:03:00]} 4. Nc3 {[%clk 0:03:01]}  e6 {[%clk 0:03:00]} 5. Bg5 {[%clk 0:03:01]}  Nbd7 {[%clk 0:03:00]} 6. e3 {[%clk 0:03:01]}  Qa5 {[%clk 0:03:00]} 7. Qc2 {[%clk 0:02:58]}  Ne4 {[%clk 0:02:57]} 8. cxd5 {[%clk 0:02:14]}  exd5 {[%clk 0:02:43]} 9. Bd3 {[%clk 0:02:03]}  f5 {[%clk 0:02:31]} 10. O-O {[%clk 0:02:01]}  Bd6 {[%clk 0:02:26]} 11. Bf4 {[%clk 0:01:59]}  Bxf4 {[%clk 0:02:19]} 12. exf4 {[%clk 0:02:00]}  O-O {[%clk 0:02:17]} 13. Ne5 {[%clk 0:02:00]}  Qb6 {[%clk 0:02:05]} 14. Rad1 {[%clk 0:01:59]}  Ndf6 {[%clk 0:01:53]} 15. Kh1 {[%clk 0:01:25]}  Be6 {[%clk 0:01:29]} 16. Na4 {[%clk 0:01:08]}  Qxd4 {[%clk 0:01:24]} 17. f3 {[%clk 0:01:06]}  Nd6 {[%clk 0:01:14]} 18. g3 {[%clk 0:00:40]}  g5 {[%clk 0:00:28]} 19. Nc5 {[%clk 0:00:17]}  Bc8 {[%clk 0:00:24]} 20. Nb3 {[%clk 0:00:17]}  Qb4 {[%clk 0:00:19]} 21. fxg5 {[%clk 0:00:16]}  Nd7 {[%clk 0:00:14]} 22. Rfe1 {[%clk 0:00:10]}  Re8 {[%clk 0:00:08]} 23. f4 {[%clk 0:00:06]}  Nxe5 {[%clk 0:00:06]} 24. fxe5 {[%clk 0:00:06]}  Nf7 {[%clk 0:00:05]} 25. Bxf5 {[%clk 0:00:04]}  Rxe5 {[%clk 0:00:04]} 26. Bxh7+ {[%clk 0:00:03]}  Kh8 {[%clk 0:00:03]} 27. g6 {[%clk 0:00:03]}  Rxe1+ {[%clk 0:00:01]} 28. Kg2 {[%clk 0:00:03]} 1-0


[Site "https://www.chess.com"]

[Event "Titled Tuesday Blitz June 28 Early 2022"]
[White "Petrova, Irina"]
[Black "Sargsyan, Anna M."]
[WhiteFideId "14124122"]
[BlackFideId "13308130"]
[WhiteElo "1993"]
[BlackElo "2271"]
[Result "0-1"]
[Round "07"]
[TimeControl "180+1"]
[Date "2022.06.28"]
[WhiteClock "0:00:21"]
[BlackClock "0:00:59"]

1. e4 {[%clk 0:03:00]}  c6 {[%clk 0:03:00]} 2. d4 {[%clk 0:03:00]}  d5 {[%clk 0:03:00]} 3. e5 {[%clk 0:03:00]}  Bf5 {[%clk 0:03:01]} 4. h4 {[%clk 0:03:00]}  h5 {[%clk 0:03:00]} 5. c4 {[%clk 0:03:00]}  e6 {[%clk 0:03:01]} 6. Nc3 {[%clk 0:02:59]}  Ne7 {[%clk 0:02:59]} 7. Bg5 {[%clk 0:02:58]}  dxc4 {[%clk 0:02:51]} 8. Bxc4 {[%clk 0:02:56]}  Nd7 {[%clk 0:02:50]} 9. Nge2 {[%clk 0:02:54]}  c5 {[%clk 0:02:45]} 10. O-O {[%clk 0:02:40]}  a6 {[%clk 0:02:34]} 11. Ng3 {[%clk 0:02:30]}  Bg6 {[%clk 0:02:29]} 12. Rc1 {[%clk 0:02:02]}  cxd4 {[%clk 0:02:28]} 13. Qxd4 {[%clk 0:02:03]}  Nc6 {[%clk 0:02:28]} 14. Qe3 {[%clk 0:01:45]}  Qb6 {[%clk 0:02:23]} 15. Qe2 {[%clk 0:01:35]}  Ndxe5 {[%clk 0:02:08]} 16. Rfd1 {[%clk 0:01:24]}  Nxc4 {[%clk 0:01:50]} 17. Qxc4 {[%clk 0:01:24]}  Bb4 {[%clk 0:01:40]} 18. Nce4 {[%clk 0:00:56]}  O-O {[%clk 0:01:37]} 19. a3 {[%clk 0:00:56]}  Be7 {[%clk 0:01:37]} 20. b4 {[%clk 0:00:52]}  Bxg5 {[%clk 0:01:32]} 21. Nxg5 {[%clk 0:00:50]}  Ne5 {[%clk 0:01:31]} 22. Qe2 {[%clk 0:00:49]}  Ng4 {[%clk 0:01:30]} 23. Rc5 {[%clk 0:00:48]}  Rfd8 {[%clk 0:01:27]} 24. Rf1 {[%clk 0:00:47]}  Rac8 {[%clk 0:01:25]} 25. N5e4 {[%clk 0:00:28]}  Rxc5 {[%clk 0:01:20]} 26. Nxc5 {[%clk 0:00:27]}  Qc6 {[%clk 0:01:20]} 27. Qb2 {[%clk 0:00:24]}  Qd5 {[%clk 0:01:15]} 28. Ne2 {[%clk 0:00:22]}  Qd6 {[%clk 0:00:59]} 29. Nc3 {[%clk 0:00:21]}  Qh2# {[%clk 0:00:59]} 0-1


[Site "https://www.chess.com"]

[Event "Titled Tuesday Blitz June 28 Early 2022"]
[White "Piesik, Piotr"]
[Black "Libiszewski, Fabien"]
[WhiteFideId "1136194"]
[BlackFideId "616834"]
[WhiteElo "2247"]
[BlackElo "2440"]
[Result "1/2-1/2"]
[Round "07"]
[TimeControl "180+1"]
[Date "2022.06.28"]
[WhiteClock "0:01:55"]
[BlackClock "0:01:10"]

1. Nf3 {[%clk 0:02:57]}  Nf6 {[%clk 0:02:59]} 2. g3 {[%clk 0:02:56]}  g6 {[%clk 0:02:57]} 3. Bg2 {[%clk 0:02:57]}  Bg7 {[%clk 0:02:58]} 4. O-O {[%clk 0:02:57]}  O-O {[%clk 0:02:58]} 5. d4 {[%clk 0:02:58]}  d5 {[%clk 0:02:56]} 6. c4 {[%clk 0:02:58]}  c6 {[%clk 0:02:56]} 7. Nc3 {[%clk 0:02:58]}  dxc4 {[%clk 0:02:56]} 8. a4 {[%clk 0:02:58]}  a5 {[%clk 0:02:55]} 9. e3 {[%clk 0:02:58]}  Na6 {[%clk 0:02:53]} 10. Qe2 {[%clk 0:02:57]}  Nb4 {[%clk 0:02:53]} 11. Qxc4 {[%clk 0:02:52]}  b6 {[%clk 0:02:53]} 12. Qb3 {[%clk 0:02:29]}  Ba6 {[%clk 0:02:47]} 13. Rd1 {[%clk 0:02:28]}  Qc7 {[%clk 0:02:39]} 14. Ne5 {[%clk 0:02:22]}  Nd7 {[%clk 0:02:34]} 15. Nxd7 {[%clk 0:02:15]}  Qxd7 {[%clk 0:02:35]} 16. Bd2 {[%clk 0:02:07]}  Rab8 {[%clk 0:02:30]} 17. Ne4 {[%clk 0:02:05]}  Nd5 {[%clk 0:02:20]} 18. Rdc1 {[%clk 0:01:58]}  Rfc8 {[%clk 0:02:18]} 19. Nc3 {[%clk 0:01:56]}  Nb4 {[%clk 0:02:04]} 20. Ne4 {[%clk 0:01:56]}  Nd5 {[%clk 0:01:28]} 21. Nc3 {[%clk 0:01:55]}  Nb4 {[%clk 0:01:11]} 22. Ne4 {[%clk 0:01:55]}  Nd5 {[%clk 0:01:10]} 1/2-1/2


[Site "https://www.chess.com"]

[Event "Titled Tuesday Blitz June 28 Early 2022"]
[White "Pinheiro, Iung Alicio de O."]
[Black "Dobre, Claudiu-Cristian"]
[WhiteFideId "2104350"]
[BlackFideId "1211854"]
[WhiteElo "2283"]
[BlackElo "2207"]
[Result "1-0"]
[Round "07"]
[TimeControl "180+1"]
[Date "2022.06.28"]
[WhiteClock "0:00:17"]
[BlackClock "0:00:03"]

1. e4 {[%clk 0:02:59]}  Nc6 {[%clk 0:03:00]} 2. Nf3 {[%clk 0:02:58]}  d6 {[%clk 0:02:59]} 3. h3 {[%clk 0:02:58]}  e5 {[%clk 0:02:56]} 4. Nc3 {[%clk 0:02:53]}  Be7 {[%clk 0:02:55]} 5. d4 {[%clk 0:02:52]}  exd4 {[%clk 0:02:55]} 6. Nxd4 {[%clk 0:02:52]}  Bf6 {[%clk 0:02:54]} 7. Bb5 {[%clk 0:02:48]}  Bd7 {[%clk 0:02:47]} 8. Be3 {[%clk 0:02:41]}  Nge7 {[%clk 0:02:41]} 9. Qd2 {[%clk 0:02:32]}  a6 {[%clk 0:02:40]} 10. Be2 {[%clk 0:02:28]}  O-O {[%clk 0:02:11]} 11. O-O {[%clk 0:02:05]}  Ng6 {[%clk 0:01:57]} 12. Nb3 {[%clk 0:01:35]}  Re8 {[%clk 0:01:52]} 13. Bd3 {[%clk 0:01:32]}  Nce5 {[%clk 0:01:44]} 14. f4 {[%clk 0:01:27]}  Nxd3 {[%clk 0:01:37]} 15. cxd3 {[%clk 0:01:28]}  Bxc3 {[%clk 0:01:36]} 16. bxc3 {[%clk 0:01:20]}  f5 {[%clk 0:01:32]} 17. exf5 {[%clk 0:01:12]}  Bxf5 {[%clk 0:01:20]} 18. Nd4 {[%clk 0:01:11]}  Bd7 {[%clk 0:01:20]} 19. f5 {[%clk 0:01:09]}  Ne5 {[%clk 0:01:05]} 20. Bg5 {[%clk 0:01:08]}  Qc8 {[%clk 0:01:00]} 21. f6 {[%clk 0:01:04]}  gxf6 {[%clk 0:00:59]} 22. Bxf6 {[%clk 0:01:03]}  Ng6 {[%clk 0:00:49]} 23. Qh6 {[%clk 0:00:56]}  Re7 {[%clk 0:00:46]} 24. Bxe7 {[%clk 0:00:38]}  Nxe7 {[%clk 0:00:45]} 25. Rae1 {[%clk 0:00:37]}  Ng6 {[%clk 0:00:42]} 26. Rf7 {[%clk 0:00:31]}  Kxf7 {[%clk 0:00:19]} 27. Qxh7+ {[%clk 0:00:29]}  Kf8 {[%clk 0:00:08]} 28. Rf1+ {[%clk 0:00:18]}  Ke8 {[%clk 0:00:06]} 29. Qxg6+ {[%clk 0:00:17]}  Ke7 {[%clk 0:00:03]} 30. Qf6+ {[%clk 0:00:17]} 1-0


[Site "https://www.chess.com"]